[Event "Torneo Nuevo Centro. Jornada 11"]
[Site "Chess.com"]
[Date "2020.08.28"]
[Round "9"]
[White "Soliva Ruiz, Ramon"]
[Black "Méndez Giménez , Néstor Emmanuel"]
[Result "1-0"]
[WhiteElo "1519"]
[BlackElo "1238"]
[TimeControl "180+2"]
[EndTime "12:07:43 PDT"]
[Termination "Victoria de rasoru por abandono"]

1. d4 {[%clk 0:03:01.9]} 1... e6 {[%clk 0:03:00.7]} 2. Bf4 {[%clk 0:03:02.2]}
2... d5 {[%clk 0:03:01.2]} 3. Nf3 {[%clk 0:03:03.4]} 3... Nc6 {[%clk 0:02:59.5]}
4. e3 {[%clk 0:03:04.4]} 4... Bd6 {[%clk 0:02:59.2]} 5. Bg5 {[%clk 0:03:03.5]}
5... Nf6 {[%clk 0:02:59.6]} 6. c3 {[%clk 0:03:02.7]} 6... b6 {[%clk 0:03:00.4]}
7. Nbd2 {[%clk 0:03:03.1]} 7... Bb7 {[%clk 0:03:00.8]} 8. Be2 {[%clk 0:03:03.5]}
8... O-O {[%clk 0:03:01.1]} 9. a3 {[%clk 0:02:56.2]} 9... a6 {[%clk 0:02:58.9]}
10. O-O {[%clk 0:02:56.6]} 10... b5 {[%clk 0:02:59.7]} 11. Bd3 {[%clk 0:02:52]}
11... h6 {[%clk 0:02:58.9]} 12. Bh4 {[%clk 0:02:52.1]} 12... Be7 {[%clk
0:02:53.2]} 13. e4 {[%clk 0:02:46.9]} 13... dxe4 {[%clk 0:02:50.8]} 14. Nxe4
{[%clk 0:02:46.9]} 14... Nxe4 {[%clk 0:02:50.1]} 15. Bxe7 {[%clk 0:02:47.4]}
15... Qxe7 {[%clk 0:02:50.5]} 16. Bxe4 {[%clk 0:02:48.4]} 16... Na5 {[%clk
0:02:51.2]} 17. Bxb7 {[%clk 0:02:48.4]} 17... Nxb7 {[%clk 0:02:52.1]} 18. Qe2
{[%clk 0:02:45]} 18... Qf6 {[%clk 0:02:52.1]} 19. Qe5 {[%clk 0:02:40.5]} 19...
Qg6 {[%clk 0:02:51.9]} 20. Qxc7 {[%clk 0:02:32.2]} 20... Ra7 {[%clk 0:02:48.2]}
21. Ne5 {[%clk 0:02:09]} 21... Qf6 {[%clk 0:02:38]} 22. Nd7 {[%clk 0:02:07.3]}
22... Qe7 {[%clk 0:02:35]} 23. d5 {[%clk 0:01:16.7]} 23... Rd8 {[%clk
0:02:32.7]} 24. dxe6 {[%clk 0:01:15.2]} 24... fxe6 {[%clk 0:02:32]} 25. Qb6
{[%clk 0:01:03.1]} 25... Qxd7 {[%clk 0:02:28.7]} 26. Qxa7 {[%clk 0:01:03.1]}
26... Qc6 {[%clk 0:02:16.6]} 27. Rfd1 {[%clk 0:00:56.9]} 27... Rf8 {[%clk
0:02:08.3]} 28. Rd2 {[%clk 0:00:50.2]} 28... Nc5 {[%clk 0:02:00.8]} 29. Rad1
{[%clk 0:00:34.5]} 29... Nb7 {[%clk 0:01:46.8]} 30. Rd7 {[%clk 0:00:23.4]} 30...
Nc5 {[%clk 0:01:05.8]} 31. Rxg7+ {[%clk 0:00:22.3]} 31... Kh8 {[%clk 0:00:50.9]}
32. Rh7+ {[%clk 0:00:22.8]} 1

[Event "Torneo Nuevo Centro. Jornada 11"]
[Site "Chess.com"]
[Date "2020.08.28"]
[Round "9"]
[White "Perez Garcia, Jose Miguel"]
[Black "Luque Saiz, Andrés"]
[Result "1-0"]
[WhiteElo "2048"]
[BlackElo "2044"]
[TimeControl "180+2"]
[EndTime "12:07:54 PDT"]
[Termination "Victoria de PEREZOV69 por abandono"]

1. c4 {[%clk 0:03:01.9]} 1... c6 {[%clk 0:03:00.2]} 2. d4 {[%clk 0:03:01.9]}
2... d5 {[%clk 0:03:00.4]} 3. Nf3 {[%clk 0:03:02.9]} 3... Nf6 {[%clk 0:03:00.6]}
4. e3 {[%clk 0:03:03.2]} 4... Bg4 {[%clk 0:03:00.2]} 5. cxd5 {[%clk 0:03:03.9]}
5... cxd5 {[%clk 0:03:01]} 6. Qb3 {[%clk 0:03:04.9]} 6... Qc8 {[%clk 0:03:00.2]}
7. Bb5+ {[%clk 0:03:02.9]} 7... Nbd7 {[%clk 0:03:00.4]} 8. Nc3 {[%clk
0:03:01.1]} 8... Bxf3 {[%clk 0:02:54.7]} 9. gxf3 {[%clk 0:03:00.9]} 9... e6
{[%clk 0:02:55.8]} 10. Bd2 {[%clk 0:03:01]} 10... a6 {[%clk 0:02:49.4]} 11. Bd3
{[%clk 0:02:59.1]} 11... Be7 {[%clk 0:02:29.4]} 12. Rc1 {[%clk 0:02:57.7]} 12...
Qb8 {[%clk 0:02:29.4]} 13. a4 {[%clk 0:02:57.4]} 13... O-O {[%clk 0:02:27.5]}
14. h4 {[%clk 0:02:53.4]} 14... Qd6 {[%clk 0:02:07.5]} 15. h5 {[%clk 0:02:50.8]}
15... e5 {[%clk 0:01:57.2]} 16. Ne2 {[%clk 0:02:48]} 16... e4 {[%clk 0:01:34.9]}
17. fxe4 {[%clk 0:02:46.9]} 17... Nxe4 {[%clk 0:01:35]} 18. Bxe4 {[%clk
0:02:47.7]} 18... dxe4 {[%clk 0:01:36.9]} 19. Ng3 {[%clk 0:02:44.2]} 19... Nf6
{[%clk 0:01:32.5]} 20. Nf5 {[%clk 0:02:42.1]} 20... Qd7 {[%clk 0:01:27.1]} 21.
Nxe7+ {[%clk 0:02:43.1]} 21... Qxe7 {[%clk 0:01:28.7]} 22. Bb4 {[%clk
0:02:44.1]} 22... Qd7 {[%clk 0:01:11.3]} 23. Bxf8 {[%clk 0:02:43.2]} 23... Rxf8
{[%clk 0:01:13.2]} 24. Qc4 {[%clk 0:02:40]} 24... Qg4 {[%clk 0:00:51.9]} 25. Qe2
{[%clk 0:02:35.8]} 25... Qg2 {[%clk 0:00:47.5]} 26. Qf1 {[%clk 0:02:33]} 26...
Qf3 {[%clk 0:00:47.6]} 27. h6 {[%clk 0:02:28.7]} 27... g6 {[%clk 0:00:22.5]} 28.
Qh3 {[%clk 0:02:27.4]} 28... Rd8 {[%clk 0:00:18.8]} 29. Qxf3 {[%clk 0:02:26.6]}
29... exf3 {[%clk 0:00:20.7]} 30. Rc7 {[%clk 0:02:19]} 30... b5 {[%clk 0:00:20]}
31. a5 {[%clk 0:02:18.6]} 31... Nd5 {[%clk 0:00:18.7]} 32. Rc5 {[%clk
0:02:07.9]} 32... Nb4 {[%clk 0:00:19.6]} 33. O-O {[%clk 0:02:08.3]} 33... f5
{[%clk 0:00:17.2]} 34. Rfc1 {[%clk 0:02:07.8]} 34... Kf7 {[%clk 0:00:17.2]} 35.
Rc7+ {[%clk 0:02:07.5]} 35... Kf6 {[%clk 0:00:18.5]} 36. Rxh7 {[%clk 0:02:03.7]}
36... Kg5 {[%clk 0:00:19.9]} 37. Kh2 {[%clk 0:01:50.8]} 37... Re8 {[%clk
0:00:20.6]} 38. Kg3 {[%clk 0:01:40.4]} 38... Re4 {[%clk 0:00:17.7]} 39. Kxf3
{[%clk 0:01:39.2]} 39... Rg4 {[%clk 0:00:17.6]} 40. Rh8 {[%clk 0:01:36.3]} 40...
Nd3 {[%clk 0:00:18.3]} 41. Rc6 {[%clk 0:01:32.3]} 41... Nxb2 {[%clk 0:00:17.1]}
42. h7 {[%clk 0:01:32.1]} 42... Nc4 {[%clk 0:00:17.6]} 43. Rg8 {[%clk
0:01:27.7]} 43... Nd2+ {[%clk 0:00:13.3]} 44. Ke2 {[%clk 0:01:27.5]} 44... Rh4
{[%clk 0:00:14.5]} 45. Rgxg6+ {[%clk 0:01:24.3]} 1

[Event "Torneo Nuevo Centro. Jornada 11"]
[Site "Chess.com"]
[Date "2020.08.28"]
[Round "9"]
[White "Gimenez Saiz, Jose Raul"]
[Black "Carbonell Sancho, Marc"]
[Result "1-0"]
[WhiteElo "1849"]
[BlackElo "1965"]
[TimeControl "180+2"]
[EndTime "12:08:02 PDT"]
[Termination "Victoria de rango013 por jaque mate"]

1. d4 {[%clk 0:03:01.9]} 1... Nf6 {[%clk 0:03:00.9]} 2. e3 {[%clk 0:03:00.1]}
2... g6 {[%clk 0:03:01.6]} 3. Bd3 {[%clk 0:03:01.5]} 3... Bg7 {[%clk 0:03:02.4]}
4. f4 {[%clk 0:03:03.2]} 4... O-O {[%clk 0:03:03.9]} 5. Nf3 {[%clk 0:03:04.9]}
5... d6 {[%clk 0:03:02.1]} 6. O-O {[%clk 0:03:06.2]} 6... e5 {[%clk 0:03:02]} 7.
fxe5 {[%clk 0:03:05.6]} 7... dxe5 {[%clk 0:02:59.9]} 8. Nxe5 {[%clk 0:03:04.1]}
8... c5 {[%clk 0:03:01.1]} 9. c3 {[%clk 0:03:04.3]} 9... Nbd7 {[%clk 0:02:59.7]}
10. Nxd7 {[%clk 0:02:57.4]} 10... Bxd7 {[%clk 0:03:01.6]} 11. Qf3 {[%clk
0:02:57.6]} 11... Bc6 {[%clk 0:03:02.6]} 12. e4 {[%clk 0:02:58.1]} 12... cxd4
{[%clk 0:03:03.4]} 13. Bg5 {[%clk 0:02:52.1]} 13... dxc3 {[%clk 0:02:53.4]} 14.
Nxc3 {[%clk 0:02:39.1]} 14... Qb6+ {[%clk 0:02:53.4]} 15. Kh1 {[%clk 0:02:23.7]}
15... Nd7 {[%clk 0:02:52.9]} 16. Qe2 {[%clk 0:02:08.5]} 16... Ne5 {[%clk
0:02:50.8]} 17. Rad1 {[%clk 0:02:07.6]} 17... Nxd3 {[%clk 0:02:47.7]} 18. Qxd3
{[%clk 0:02:07.6]} 18... Qxb2 {[%clk 0:02:41.4]} 19. Nd5 {[%clk 0:02:02.1]}
19... Qxa2 {[%clk 0:02:24.8]} 20. Be7 {[%clk 0:01:37.8]} 20... Rfe8 {[%clk
0:02:02]} 21. Bg5 {[%clk 0:01:30.6]} 21... Bxd5 {[%clk 0:01:57.9]} 22. exd5
{[%clk 0:01:30.8]} 22... Qa4 {[%clk 0:01:53.7]} 23. d6 {[%clk 0:01:29.7]} 23...
Qd7 {[%clk 0:01:54.1]} 24. Be7 {[%clk 0:01:27.4]} 24... a5 {[%clk 0:01:52.2]}
25. Rxf7 {[%clk 0:00:38.8]} 25... Qe6 {[%clk 0:01:40.2]} 26. Rdf1 {[%clk
0:00:31.2]} 26... Rad8 {[%clk 0:01:32.5]} 27. Qf3 {[%clk 0:00:23.7]} 27... Rxd6
{[%clk 0:01:28.4]} 28. Bxd6 {[%clk 0:00:22.5]} 28... Qxd6 {[%clk 0:01:29.3]} 29.
Rxg7+ {[%clk 0:00:19.3]} 29... Kxg7 {[%clk 0:01:28.8]} 30. Qf7+ {[%clk
0:00:19.6]} 30... Kh6 {[%clk 0:01:30.6]} 31. Qxe8 {[%clk 0:00:20.1]} 31... Qd3
{[%clk 0:01:30]} 32. Qe1 {[%clk 0:00:19.6]} 32... a4 {[%clk 0:01:28.1]} 33. Rf7
{[%clk 0:00:17.3]} 33... Qd4 {[%clk 0:01:04.9]} 34. Qc1+ {[%clk 0:00:17.2]}
34... g5 {[%clk 0:01:05.8]} 35. Qb1 {[%clk 0:00:16.3]} 35... Kh5 {[%clk
0:00:51.8]} 36. Qxh7+ {[%clk 0:00:12.4]} 36... Kg4 {[%clk 0:00:52.8]} 37. h3+
{[%clk 0:00:13.4]} 37... Kg3 {[%clk 0:00:49.7]} 38. Rf3# {[%clk 0:00:13.9]} 1

[Event "Torneo Nuevo Centro. Jornada 11"]
[Site "Chess.com"]
[Date "2020.08.28"]
[Round "9"]
[White "Casado Andreu, David"]
[Black "Roca Cruz, Rafael"]
[Result "0-1"]
[WhiteElo "1576"]
[BlackElo "1802"]
[TimeControl "180+2"]
[EndTime "12:08:08 PDT"]
[Termination "Victoria de RafaRocaCruz por tiempo"]

1. e4 {[%clk 0:03:01.9]} 1... c5 {[%clk 0:03:00.5]} 2. Nf3 {[%clk 0:03:03.1]}
2... e6 {[%clk 0:03:01.4]} 3. d4 {[%clk 0:03:05]} 3... cxd4 {[%clk 0:03:02.6]}
4. Nxd4 {[%clk 0:03:06.9]} 4... Nf6 {[%clk 0:03:04]} 5. Nc3 {[%clk 0:03:08.2]}
5... Bb4 {[%clk 0:03:05]} 6. Bd3 {[%clk 0:03:03.8]} 6... d5 {[%clk 0:03:04.4]}
7. e5 {[%clk 0:03:03.4]} 7... Nfd7 {[%clk 0:03:03.3]} 8. Nf3 {[%clk 0:02:42.8]}
8... Qc7 {[%clk 0:02:51]} 9. O-O {[%clk 0:02:40.3]} 9... Bxc3 {[%clk 0:02:45.9]}
10. bxc3 {[%clk 0:02:39.4]} 10... Nxe5 {[%clk 0:02:47]} 11. Nxe5 {[%clk
0:02:26]} 11... Qxe5 {[%clk 0:02:47.8]} 12. f4 {[%clk 0:02:24.5]} 12... Qxc3
{[%clk 0:02:38.3]} 13. Rb1 {[%clk 0:02:25.1]} 13... Qc5+ {[%clk 0:02:23.5]} 14.
Kh1 {[%clk 0:02:24.6]} 14... O-O {[%clk 0:02:24.6]} 15. Qh5 {[%clk 0:02:18.4]}
15... f5 {[%clk 0:02:16.9]} 16. Bb2 {[%clk 0:02:10.3]} 16... Nd7 {[%clk
0:02:02.7]} 17. g4 {[%clk 0:02:04.5]} 17... Nf6 {[%clk 0:02:01.5]} 18. Bxf6
{[%clk 0:02:03]} 18... Rxf6 {[%clk 0:02:02.5]} 19. Qe8+ {[%clk 0:02:04.4]} 19...
Qf8 {[%clk 0:02:03.2]} 20. Qh5 {[%clk 0:01:58.3]} 20... g6 {[%clk 0:02:01]} 21.
Qh3 {[%clk 0:01:58.6]} 21... fxg4 {[%clk 0:01:55.8]} 22. Qxg4 {[%clk 0:01:58.7]}
22... e5 {[%clk 0:01:57]} 23. Qh4 {[%clk 0:01:26.6]} 23... exf4 {[%clk
0:00:56.2]} 24. Rb5 {[%clk 0:01:19.4]} 24... b6 {[%clk 0:00:52.6]} 25. Kg1
{[%clk 0:01:01.7]} 25... Bb7 {[%clk 0:00:41.4]} 26. Rf3 {[%clk 0:00:55.8]} 26...
Re8 {[%clk 0:00:29.1]} 27. Rh3 {[%clk 0:00:53.6]} 27... Qe7 {[%clk 0:00:23.6]}
28. Rb1 {[%clk 0:00:43.5]} 28... d4 {[%clk 0:00:18.9]} 29. Kf2 {[%clk
0:00:17.8]} 29... f3 {[%clk 0:00:18.8]} 0

[Event "Torneo Nuevo Centro. Jornada 11"]
[Site "Chess.com"]
[Date "2020.08.28"]
[Round "9"]
[White "Yatseta Fernandez, Marc Kazymyr"]
[Black "Rodriguez Rodriguez, Joan David "]
[Result "0-1"]
[WhiteElo "1522"]
[BlackElo "1782"]
[TimeControl "180+2"]
[EndTime "12:08:31 PDT"]
[Termination "Victoria de Not_Jr_chess por jaque mate"]

1. d4 {[%clk 0:02:58.7]} 1... d6 {[%clk 0:03:00.5]} 2. c4 {[%clk 0:02:58.8]}
2... Nf6 {[%clk 0:03:01.6]} 3. Nf3 {[%clk 0:02:59.9]} 3... Nbd7 {[%clk
0:03:02.1]} 4. Bf4 {[%clk 0:02:58.1]} 4... c6 {[%clk 0:02:54.4]} 5. Nc3 {[%clk
0:02:57.2]} 5... Qc7 {[%clk 0:02:55.3]} 6. e4 {[%clk 0:02:53.6]} 6... e5 {[%clk
0:02:55.8]} 7. Be3 {[%clk 0:02:48.6]} 7... Be7 {[%clk 0:02:50.9]} 8. Bd3 {[%clk
0:02:46.1]} 8... h6 {[%clk 0:02:48.8]} 9. O-O {[%clk 0:02:40.5]} 9... g5 {[%clk
0:02:49.5]} 10. h3 {[%clk 0:02:31.9]} 10... Nf8 {[%clk 0:02:50.1]} 11. Bc2
{[%clk 0:02:26.2]} 11... Ng6 {[%clk 0:02:51]} 12. Nh2 {[%clk 0:02:20.4]} 12...
Nf4 {[%clk 0:02:49]} 13. Bxf4 {[%clk 0:02:20.7]} 13... gxf4 {[%clk 0:02:50.9]}
14. Kh1 {[%clk 0:02:05.5]} 14... Rg8 {[%clk 0:02:49.3]} 15. Rg1 {[%clk
0:02:05.7]} 15... Bd7 {[%clk 0:02:35.4]} 16. dxe5 {[%clk 0:02:05.8]} 16... dxe5
{[%clk 0:02:36]} 17. a3 {[%clk 0:02:00.5]} 17... O-O-O {[%clk 0:02:36.6]} 18.
Qf3 {[%clk 0:01:57.2]} 18... Rg7 {[%clk 0:02:23.3]} 19. b4 {[%clk 0:01:56.1]}
19... Rdg8 {[%clk 0:02:23.6]} 20. Bb3 {[%clk 0:01:51.4]} 20... Nh7 {[%clk
0:02:01.3]} 21. Rac1 {[%clk 0:01:51.1]} 21... Ng5 {[%clk 0:02:02]} 22. Qd3
{[%clk 0:01:42.4]} 22... Ne6 {[%clk 0:01:31.2]} 23. Nd5 {[%clk 0:01:39.9]} 23...
Qd8 {[%clk 0:01:28.8]} 24. Nxe7+ {[%clk 0:01:33.4]} 24... Qxe7 {[%clk
0:01:30.7]} 25. b5 {[%clk 0:01:12.4]} 25... c5 {[%clk 0:01:19.7]} 26. a4 {[%clk
0:00:57.9]} 26... f3 {[%clk 0:00:54.9]} 27. Nxf3 {[%clk 0:00:49]} 27... Nf4
{[%clk 0:00:53.7]} 28. Qd2 {[%clk 0:00:36.5]} 28... Nxg2 {[%clk 0:00:51.4]} 29.
Rgd1 {[%clk 0:00:23.5]} 29... Nf4 {[%clk 0:00:40.3]} 30. Nxe5 {[%clk 0:00:22.8]}
30... Bxh3 {[%clk 0:00:29.8]} 31. Qxf4 {[%clk 0:00:20.1]} 31... Bg2+ {[%clk
0:00:26.1]} 32. Kh2 {[%clk 0:00:20]} 32... Rg5 {[%clk 0:00:11.9]} 33. Nd3 {[%clk
0:00:15.7]} 33... Rh5+ {[%clk 0:00:10.5]} 34. Kg1 {[%clk 0:00:15.1]} 34... Bf3+
{[%clk 0:00:08.7]} 35. Kf1 {[%clk 0:00:15.3]} 35... Rh1# {[%clk 0:00:09.9]} 0

[Event "Torneo Nuevo Centro. Jornada 11"]
[Site "Chess.com"]
[Date "2020.08.28"]
[Round "9"]
[White "Garcia, Jhoel"]
[Black "Aymerich Rosell, Pablo"]
[Result "1-0"]
[WhiteElo "2373"]
[BlackElo "2018"]
[TimeControl "180+2"]
[EndTime "12:08:33 PDT"]
[Termination "Victoria de shoels por tiempo"]

1. Nc3 {[%clk 0:03:01.9]} 1... Nf6 {[%clk 0:02:58.4]} 2. d4 {[%clk 0:03:02.1]}
2... d5 {[%clk 0:02:57.6]} 3. Bg5 {[%clk 0:03:02.5]} 3... c6 {[%clk 0:02:50]} 4.
Bxf6 {[%clk 0:02:47.4]} 4... exf6 {[%clk 0:02:44.4]} 5. e3 {[%clk 0:02:48.1]}
5... Bb4 {[%clk 0:02:42.1]} 6. Ne2 {[%clk 0:02:47.1]} 6... O-O {[%clk
0:02:41.9]} 7. a3 {[%clk 0:02:48.4]} 7... Bd6 {[%clk 0:02:40.2]} 8. Ng3 {[%clk
0:02:48.4]} 8... Re8 {[%clk 0:02:34.6]} 9. Bd3 {[%clk 0:02:49]} 9... Nd7 {[%clk
0:02:30.2]} 10. Qf3 {[%clk 0:02:33.6]} 10... Nf8 {[%clk 0:02:27]} 11. O-O-O
{[%clk 0:02:29.2]} 11... b5 {[%clk 0:02:26.9]} 12. e4 {[%clk 0:02:28.7]} 12...
a5 {[%clk 0:02:18.1]} 13. exd5 {[%clk 0:02:19.4]} 13... b4 {[%clk 0:02:18.8]}
14. Na4 {[%clk 0:01:57.3]} 14... bxa3 {[%clk 0:02:17.2]} 15. b3 {[%clk
0:01:58.6]} 15... cxd5 {[%clk 0:02:13.2]} 16. Nf5 {[%clk 0:01:39.4]} 16... Bb4
{[%clk 0:02:03.5]} 17. Kb1 {[%clk 0:01:36]} 17... Bd7 {[%clk 0:01:44]} 18. Qxd5
{[%clk 0:01:32.5]} 18... Bxa4 {[%clk 0:01:35.8]} 19. Qxd8 {[%clk 0:01:32.5]}
19... Raxd8 {[%clk 0:01:25.9]} 20. bxa4 {[%clk 0:01:33.3]} 20... g6 {[%clk
0:01:15.7]} 21. Ng3 {[%clk 0:01:19.9]} 21... Rxd4 {[%clk 0:01:14.8]} 22. Ka2
{[%clk 0:01:20.4]} 22... Rc8 {[%clk 0:01:05.3]} 23. Ne2 {[%clk 0:01:16.9]} 23...
Rd7 {[%clk 0:00:58]} 24. Kb3 {[%clk 0:01:16.8]} 24... Rb8 {[%clk 0:00:52.8]} 25.
Bb5 {[%clk 0:01:15.5]} 25... Re7 {[%clk 0:00:48.5]} 26. c3 {[%clk 0:01:14.4]}
26... Bc5 {[%clk 0:00:43.2]} 27. Nd4 {[%clk 0:01:13.4]} 27... Bxd4 {[%clk
0:00:25.1]} 28. cxd4 {[%clk 0:01:06.9]} 28... Re2 {[%clk 0:00:25.7]} 29. Rhf1
{[%clk 0:01:02.2]} 29... a2 {[%clk 0:00:18.1]} 30. Kc3 {[%clk 0:00:52.3]} 30...
Rc8+ {[%clk 0:00:17.9]} 31. Kb3 {[%clk 0:00:50.7]} 31... Rcc2 {[%clk 0:00:16.6]}
32. Bxe2 {[%clk 0:00:50.7]} 32... Rxe2 {[%clk 0:00:16.8]} 33. d5 {[%clk
0:00:51.7]} 33... Nd7 {[%clk 0:00:17.4]} 34. d6 {[%clk 0:00:51.5]} 34... Nc5+
{[%clk 0:00:17.3]} 35. Kc4 {[%clk 0:00:52.3]} 35... Rc2+ {[%clk 0:00:17.5]} 36.
Kb5 {[%clk 0:00:52.8]} 36... a1=Q {[%clk 0:00:11.1]} 37. Rxa1 {[%clk 0:00:52.8]}
37... Nb3 {[%clk 0:00:09.5]} 38. d7 {[%clk 0:00:51.7]} 38... Rd2 {[%clk
0:00:08.6]} 39. Rad1 {[%clk 0:00:52.3]} 39... Nd4+ {[%clk 0:00:09.1]} 40. Kc4
{[%clk 0:00:53.7]} 40... Rxd1 {[%clk 0:00:07.6]} 41. Rxd1 {[%clk 0:00:54.1]}
41... Ne6 {[%clk 0:00:08.5]} 42. d8=Q+ {[%clk 0:00:55.7]} 42... Nxd8 {[%clk
0:00:09.6]} 43. Rxd8+ {[%clk 0:00:57]} 43... Kg7 {[%clk 0:00:10.8]} 44. Ra8
{[%clk 0:00:58.7]} 1

[Event "Torneo Nuevo Centro. Jornada 11"]
[Site "Chess.com"]
[Date "2020.08.28"]
[Round "9"]
[White "Bendayán Claros, Aaron"]
[Black "Aguado, Pablo Luis"]
[Result "1-0"]
[WhiteElo "1986"]
[BlackElo "1914"]
[TimeControl "180+2"]
[EndTime "12:08:45 PDT"]
[Termination "Victoria de Cuajada_Zero por abandono"]

1. d4 {[%clk 0:03:01.7]} 1... d5 {[%clk 0:03:00.6]} 2. c4 {[%clk 0:03:01.1]}
2... e6 {[%clk 0:03:01.3]} 3. Nc3 {[%clk 0:02:59.1]} 3... Nf6 {[%clk 0:03:01.9]}
4. cxd5 {[%clk 0:02:56.2]} 4... exd5 {[%clk 0:03:02.5]} 5. Bf4 {[%clk
0:02:56.2]} 5... Bd6 {[%clk 0:02:54.3]} 6. Bg5 {[%clk 0:02:55.7]} 6... c6 {[%clk
0:02:53.4]} 7. e3 {[%clk 0:02:56]} 7... O-O {[%clk 0:02:54.4]} 8. Bd3 {[%clk
0:02:56]} 8... Re8 {[%clk 0:02:54.2]} 9. Qc2 {[%clk 0:02:52.9]} 9... h6 {[%clk
0:02:50.1]} 10. Bh4 {[%clk 0:02:53.1]} 10... a5 {[%clk 0:02:50.3]} 11. Nf3
{[%clk 0:02:45.2]} 11... Na6 {[%clk 0:02:44.6]} 12. a3 {[%clk 0:02:44.9]} 12...
Nc7 {[%clk 0:02:45.2]} 13. O-O {[%clk 0:02:43.4]} 13... Bg4 {[%clk 0:02:42.7]}
14. Bg3 {[%clk 0:02:37.7]} 14... Bxf3 {[%clk 0:02:42.5]} 15. gxf3 {[%clk
0:02:38.4]} 15... Ne6 {[%clk 0:02:39.7]} 16. Rad1 {[%clk 0:02:34.6]} 16... Ng5
{[%clk 0:02:40.3]} 17. Kg2 {[%clk 0:02:35.6]} 17... Qe7 {[%clk 0:02:08.4]} 18.
Bf5 {[%clk 0:02:28.4]} 18... Rad8 {[%clk 0:01:52]} 19. Bd3 {[%clk 0:02:21.6]}
19... Qd7 {[%clk 0:01:29.6]} 20. Bf5 {[%clk 0:02:20.4]} 20... Qc7 {[%clk
0:01:30.1]} 21. Rb1 {[%clk 0:02:14.4]} 21... Bxg3 {[%clk 0:01:28.3]} 22. hxg3
{[%clk 0:02:16.3]} 22... Qd6 {[%clk 0:01:25.2]} 23. b4 {[%clk 0:02:15.8]} 23...
axb4 {[%clk 0:01:25.4]} 24. axb4 {[%clk 0:02:17.7]} 24... Ra8 {[%clk 0:01:25.7]}
25. b5 {[%clk 0:02:17.2]} 25... Ra3 {[%clk 0:01:24.3]} 26. bxc6 {[%clk
0:02:13.4]} 26... bxc6 {[%clk 0:01:26.2]} 27. Na4 {[%clk 0:02:11.2]} 27... Ra8
{[%clk 0:01:13.8]} 28. Nc5 {[%clk 0:02:10.6]} 28... Ra2 {[%clk 0:01:08.2]} 29.
Rb2 {[%clk 0:02:11.2]} 29... R2a3 {[%clk 0:01:05.7]} 30. Rfb1 {[%clk 0:02:11]}
30... Nh5 {[%clk 0:00:55.3]} 31. Rb3 {[%clk 0:01:53.8]} 31... Ra2 {[%clk
0:00:53.5]} 32. R1b2 {[%clk 0:01:53.5]} 32... Ra1 {[%clk 0:00:54.8]} 33. Rb7
{[%clk 0:01:48.4]} 33... g6 {[%clk 0:00:43.4]} 34. f4 {[%clk 0:00:35.6]} 34...
Nh7 {[%clk 0:00:31.6]} 35. Be6 {[%clk 0:00:24.1]} 35... Rf8 {[%clk 0:00:04.7]}
36. Qxg6+ {[%clk 0:00:24.5]} 36... Ng7 {[%clk 0:00:05.7]} 37. Bxf7+ {[%clk
0:00:23.1]} 37... Kh8 {[%clk 0:00:06]} 38. Qxd6 {[%clk 0:00:23.7]} 1

[Event "Torneo Nuevo Centro. Jornada 11"]
[Site "Chess.com"]
[Date "2020.08.28"]
[Round "9"]
[White "Vidarte Morales, Arturo"]
[Black "Montesinos Diaz, Luis"]
[Result "1-0"]
[WhiteElo "2202"]
[BlackElo "1906"]
[TimeControl "180+2"]
[EndTime "12:09:23 PDT"]
[Termination "Victoria de Arturo_Vidarte por abandono"]

1. c4 {[%clk 0:03:01.9]} 1... e5 {[%clk 0:02:54.4]} 2. Nc3 {[%clk 0:03:02]} 2...
Nc6 {[%clk 0:02:54.9]} 3. g3 {[%clk 0:03:02.5]} 3... g6 {[%clk 0:02:56]} 4. Bg2
{[%clk 0:03:03.3]} 4... Bg7 {[%clk 0:02:57.2]} 5. d3 {[%clk 0:03:03.4]} 5... d6
{[%clk 0:02:58.2]} 6. Rb1 {[%clk 0:03:01.9]} 6... a5 {[%clk 0:02:58]} 7. a3
{[%clk 0:03:01.3]} 7... f5 {[%clk 0:02:58.3]} 8. e3 {[%clk 0:02:59]} 8... Nf6
{[%clk 0:02:58.7]} 9. Nge2 {[%clk 0:03:00]} 9... O-O {[%clk 0:02:59.4]} 10. O-O
{[%clk 0:02:52.3]} 10... Ne7 {[%clk 0:02:58]} 11. b4 {[%clk 0:02:51.3]} 11...
axb4 {[%clk 0:02:58]} 12. axb4 {[%clk 0:02:51.9]} 12... c6 {[%clk 0:02:59.1]}
13. b5 {[%clk 0:02:52.7]} 13... Be6 {[%clk 0:02:56.4]} 14. Qb3 {[%clk
0:02:36.7]} 14... g5 {[%clk 0:02:50.2]} 15. f4 {[%clk 0:02:27.7]} 15... g4
{[%clk 0:02:47.6]} 16. Ba3 {[%clk 0:02:22.4]} 16... Rf7 {[%clk 0:02:40.3]} 17.
bxc6 {[%clk 0:02:18]} 17... bxc6 {[%clk 0:02:40.2]} 18. d4 {[%clk 0:02:13.2]}
18... exf4 {[%clk 0:02:20.9]} 19. Nxf4 {[%clk 0:01:51.9]} 19... Bxc4 {[%clk
0:02:21.2]} 20. Qxc4 {[%clk 0:01:48.4]} 20... Rxa3 {[%clk 0:02:21.7]} 21. Rb7
{[%clk 0:01:41.6]} 21... d5 {[%clk 0:02:04.3]} 22. Qb4 {[%clk 0:01:39.6]} 22...
Rxc3 {[%clk 0:01:52]} 23. Qxc3 {[%clk 0:01:37.8]} 23... Ne4 {[%clk 0:01:23.1]}
24. Bxe4 {[%clk 0:01:36.5]} 24... fxe4 {[%clk 0:01:25]} 25. Rfb1 {[%clk
0:01:34.6]} 25... Rf8 {[%clk 0:01:17.2]} 26. R1b3 {[%clk 0:01:18.5]} 26... Qd6
{[%clk 0:01:15.5]} 27. Rxe7 {[%clk 0:01:04.5]} 27... Qxe7 {[%clk 0:01:14.3]} 28.
Qxc6 {[%clk 0:01:04.5]} 28... Rd8 {[%clk 0:00:37.4]} 29. Nxd5 {[%clk 0:00:51.5]}
29... Qf7 {[%clk 0:00:37.1]} 30. Rb5 {[%clk 0:00:43]} 30... Bf8 {[%clk
0:00:36.2]} 31. Nf4 {[%clk 0:00:40.7]} 31... Rd6 {[%clk 0:00:33.2]} 32. Qa8
{[%clk 0:00:32.8]} 32... Qc4 {[%clk 0:00:30.4]} 33. Rb1 {[%clk 0:00:24.3]} 33...
Qc2 {[%clk 0:00:23.2]} 34. Qb7 {[%clk 0:00:22.5]} 34... Qd2 {[%clk 0:00:17.8]}
35. Qb3+ {[%clk 0:00:21.7]} 35... Kh8 {[%clk 0:00:17.5]} 36. Rd1 {[%clk
0:00:21.6]} 36... Qa5 {[%clk 0:00:14.9]} 37. Qf7 {[%clk 0:00:21.3]} 37... Qd8
{[%clk 0:00:09.2]} 38. Qf5 {[%clk 0:00:21.4]} 38... Bg7 {[%clk 0:00:07.6]} 39.
Qxg4 {[%clk 0:00:21.8]} 39... Qa5 {[%clk 0:00:06.4]} 40. Kg2 {[%clk 0:00:20.1]}
40... Qa2+ {[%clk 0:00:06.5]} 41. Qe2 {[%clk 0:00:20.5]} 41... Qa5 {[%clk
0:00:05.7]} 42. Rb1 {[%clk 0:00:21.5]} 42... Qd8 {[%clk 0:00:05.6]} 43. Qb5
{[%clk 0:00:21.2]} 43... h6 {[%clk 0:00:04.8]} 44. Qb8 {[%clk 0:00:21.1]} 44...
Kh7 {[%clk 0:00:05.8]} 45. Qxd8 {[%clk 0:00:20.4]} 45... Rxd8 {[%clk 0:00:07.7]}
46. Rb7 {[%clk 0:00:20.8]} 46... Kg8 {[%clk 0:00:07]} 47. Rxg7+ {[%clk
0:00:18.9]} 47... Kf8 {[%clk 0:00:05.6]} 48. Ne6+ {[%clk 0:00:18.5]} 1